bitfinex/quotes_SOLUSD_20220109
["timestamp","ask_amount","ask_price","bid_price","bid_amount"]
[1641737731993,6.695158,139.46,139.41,10.761]
[1641737732994,6.695158,139.46,139.41,42.09108958]
[1641737733396,6.695158,139.47,139.41,42.09108958]
[1641737733996,6.695158,139.47,139.42,0.25]
[1641737734196,1.792,139.5,139.44,10.7586]
[1641737734396,106.08670762,139.51,139.44,41.95382491]
[1641737734597,10.686052,139.5,139.44,41.95382491]
[1641737734995,1.792,139.5,139.44,41.95382491]
[1641737735998,106.08670762,139.51,139.44,43.74582491]
[1641737736202,107.87870762,139.51,139.44,12.5506]
[1641737737401,107.87870762,139.51,139.44,10.7586]
[1641737738202,107.87870762,139.51,139.45,23.9921979]
[1641737738401,11.436658,139.5,139.45,34.7499979]
[1641737739303,32.45600762,139.51,139.45,34.7499979]
[1641737740303,1.792,139.51,139.45,34.7499979]
[1641737740506,35.8754,139.53,139.46,1.792]
[1641737740706,8.899782,139.52,139.46,12.5493]
[1641737741005,1.792,139.51,139.46,10.7573]
[1641737741207,1.792,139.52,139.46,10.7573]
[1641737741410,24.97742223,139.52,139.46,10.7573]
[1641737741606,35.73532223,139.52,139.44,1.792]
[1641737741806,35.73532223,139.52,139.43,10.38]
[1641737742006,35.73532223,139.52,139.44,10.7587]
[1641737745010,35.73532223,139.52,139.45,42.59857662]
[1641737745410,24.494895,139.51,139.45,42.59857662]
[1641737745612,1.792,139.5,139.43,10.38]
[1641737746037,1.792,139.5,139.44,10.7589]
[1641737746610,1.792,139.51,139.44,10.7589]
[1641737747812,10.7594,139.5,139.44,10.7589]
[1641737748013,1.792,139.49,139.44,10.7589]
[1641737748614,1.792,139.51,139.44,10.7589]
[1641737749417,1.792,139.51,139.43,21.1396]
[1641737749418,12.5507,139.51,139.43,21.1396]
[1641737751318,15.720513,139.5,139.43,21.1396]
[1641737751520,13.229478,139.49,139.43,21.1396]
[1641737751817,11.437478,139.48,139.43,21.1396]
[1641737752019,20.339192,139.48,139.43,21.1396]
[1641737752217,26.952608,139.48,139.43,21.1396]
[1641737752417,22.86464482,139.47,139.43,21.1396]
[1641737752719,22.86464482,139.47,139.43,10.38]
[1641737752918,20.340832,139.46,139.4,1.792]
[1641737753118,1.793,139.45,139.38,10.38]
[1641737753743,24.2025,139.44,139.38,10.38]
[1641737753944,1.793,139.43,139.38,10.38]
[1641737755547,12.5577,139.43,139.38,10.38]
[1641737757749,1.793,139.43,139.38,10.38]
[1641737759450,1.793,139.43,139.37,10.7643]
[1641737759853,12.5576,139.43,139.37,10.7643]
[1641737760051,1.793,139.43,139.37,10.7643]
[1641737760655,1.793,139.46,139.38,1.793]
[1641737761051,1.793,139.46,139.36,1.793]
[1641737761254,1.793,139.46,139.36,15.683]
[1641737761854,1.793,139.46,139.41,10.7614]
[1641737762052,1.793,139.46,139.41,35.36248861]
[1641737762257,24.3719,139.47,139.41,10.7614]
[1641737762455,20.330568,139.46,139.41,10.7614]
[1641737762652,1.792,139.45,139.41,10.7614]
[1641737763353,12.5551,139.46,139.4,10.7619]
[1641737763554,13.514222,139.45,139.4,10.7619]
[1641737763753,1.793,139.46,139.4,10.7619]
[1641737763955,1.793,139.47,139.4,10.7619]
[1641737764155,20.330568,139.46,139.4,10.7619]
[1641737764355,1.793,139.47,139.4,10.7619]
[1641737764758,12.5545,139.47,139.4,10.7619]
[1641737765055,1.793,139.47,139.4,10.7619]
[1641737766656,81.6743,139.48,139.4,10.7619]
[1641737766857,1.792,139.48,139.41,0.25]
[1641737767055,4.04570975,139.51,139.42,10.38]
[1641737767056,1.792,139.5,139.42,10.38]
[1641737767358,4.04570975,139.51,139.46,10.7577]
[1641737767556,8.897218,139.5,139.46,41.7443075]
[1641737767756,4.04570975,139.52,139.46,41.7443075]
[1641737767955,5.83770975,139.52,139.46,41.7443075]
[1641737768155,4.04570975,139.52,139.46,41.7443075]
[1641737768356,1.792,139.51,139.46,41.7443075]
[1641737768559,2.02883849,139.52,139.46,41.7443075]
[1641737768758,1.792,139.51,139.46,41.7443075]
[1641737768956,1.792,139.51,139.46,10.7577]
[1641737769359,3.82083849,139.51,139.45,10.7583]
[1641737769555,8.897218,139.5,139.45,10.7583]
[1641737769958,10.92605649,139.5,139.45,10.7583]
[1641737770159,14.95861849,139.5,139.45,10.7583]
[1641737770356,20.331379,139.49,139.45,10.7583]
[1641737770557,1.792,139.48,139.45,10.7583]
[1641737770756,13.226161,139.48,139.45,10.7583]
[1641737770955,6.06439993,139.47,139.45,10.7583]
[1641737774963,3.82083849,139.5,139.45,10.7583]
[1641737775166,8.8998,139.49,139.45,10.7583]
[1641737775763,40.20513463,139.49,139.45,10.7583]
[1641737775963,31.30533463,139.49,139.45,10.7583]
[1641737779566,22.500639,139.48,139.44,10.7592]
[1641737779801,1.792,139.47,139.42,10.38]
[1641737779968,1.792,139.48,139.42,10.38]
[1641737780369,25.957219,139.47,139.41,1.792]
[1641737780571,1.792,139.46,139.41,1.792]
[1641737780768,15.475405,139.45,139.41,1.792]
[1641737780974,26.11028475,139.43,139.41,1.792]
[1641737781275,6.06439993,139.42,139.41,1.792]
[1641737782771,6.06439993,139.42,139.38,10.7637]
[1641737782974,8.904905,139.41,139.38,10.7637]
[1641737783575,11.567863,139.42,139.38,10.7637]
[1641737785874,26.11028475,139.43,139.38,10.7637]
[1641737786081,1.793,139.45,139.38,10.7637]
[1641737786476,1.793,139.45,139.38,18.6957]
[1641737786775,1.793,139.45,139.42,10.76]
[1641737786976,2.02883849,139.47,139.42,10.76]
[1641737787175,8.898512,139.46,139.42,10.76]
[1641737787807,1.792,139.47,139.42,34.83681343]
[1641737788007,30.96716214,139.48,139.42,34.83681343]
[1641737788608,30.96716214,139.48,139.42,10.76]
[1641737790307,3.82083849,139.49,139.42,10.76]
[1641737791709,3.82083849,139.49,139.42,12.552]
[1641737792511,2.02883849,139.49,139.42,12.552]
[1641737792912,52.7879427,139.5,139.42,12.552]
[1641737794914,63.5473427,139.5,139.42,12.552]
[1641737795313,52.7879427,139.5,139.42,12.552]
[1641737797418,63.5473427,139.5,139.42,12.552]
[1641737797625,35.556413,139.49,139.42,12.552]
[1641737797818,1.792,139.48,139.42,10.76]
[1641737798218,1.792,139.49,139.42,10.76]
[1641737798520,3.82083849,139.49,139.42,10.76]
[1641737798719,20.710671,139.48,139.42,10.76]
[1641737798918,14.58133849,139.49,139.42,10.76]
[1641737799120,3.82083849,139.49,139.42,12.552]
[1641737802425,3.82083849,139.49,139.42,10.76]
[1641737804528,2.02883849,139.49,139.46,10.7566]
[1641737805023,2.02883849,139.49,139.47,37.639]
[1641737805225,2.02883849,139.49,139.47,35.847]
[1641737805424,2.02883849,139.52,139.47,64.39047607]
[1641737805628,2.02883849,139.52,139.47,71.89147607]
[1641737805824,2.02883849,139.52,139.49,10.754]
[1641737807125,2.02883849,139.53,139.49,10.754]
[1641737808729,3.82083849,139.54,139.49,10.754]
[1641737809328,2.02883849,139.53,139.49,10.754]
[1641737810126,3.82083849,139.54,139.49,10.754]
[1641737811729,39.343969,139.53,139.49,10.754]
[1641737811930,1.791,139.52,139.49,10.754]
[1641737812228,6.06439993,139.51,139.49,10.754]
[1641737812431,6.06439993,139.51,139.48,10.7559]
[1641737812829,20.840315,139.5,139.48,10.7559]
[1641737813030,16.598271,139.5,139.45,12.171]
[1641737813231,16.598271,139.49,139.45,10.38]
[1641737813432,16.598271,139.49,139.46,10.7575]
[1641737813631,3.82083849,139.51,139.46,10.7575]
[1641737814031,16.598271,139.5,139.46,10.7575]
[1641737814531,11.439911,139.5,139.46,10.7575]
[1641737814731,11.439911,139.49,139.46,10.7575]
[1641737815033,11.439911,139.5,139.46,10.7575]
[1641737815732,2.02883849,139.51,139.46,10.7575]
[1641737816732,3.82083849,139.52,139.46,10.7575]
[1641737817933,17.424844,139.51,139.46,10.7575]
[1641737818538,11.436635,139.5,139.46,10.7575]
[1641737818737,3.82083849,139.52,139.46,10.7575]
[1641737820933,3.82083849,139.52,139.45,22.9302]
[1641737820934,19.296159,139.51,139.45,22.9302]
[1641737821162,1.792,139.5,139.45,21.1382]
[1641737821363,28.88270601,139.5,139.4,1.792]
[1641737821561,1.862,139.49,139.4,12.172]
[1641737821764,1.862,139.49,139.4,10.38]
[1641737821962,13.22467886,139.48,139.4,10.38]
[1641737822161,1.792,139.47,139.4,10.38]
[1641737822361,3.57282586,139.47,139.4,10.38]
[1641737822560,10.7633,139.45,139.4,10.38]
[1641737822760,1.793,139.44,139.4,10.38]
[1641737822962,2.02883849,139.46,139.4,10.38]
[1641737823362,2.02883849,139.47,139.4,10.38]
[1641737823562,1.792,139.46,139.4,10.38]
[1641737824164,1.792,139.46,139.4,21.1421]
[1641737824770,2.02883849,139.47,139.4,21.1421]
[1641737824964,2.02883849,139.47,139.41,1.792]
[1641737825165,2.02883849,139.47,139.41,4.792]
[1641737825466,11.445494,139.46,139.44,10.7589]
[1641737825666,15.607193,139.47,139.44,10.7589]
[1641737825865,3.82183849,139.48,139.44,10.7589]
[1641737826868,2.02883849,139.48,139.44,10.7589]
[1641737827066,1.792,139.5,139.44,10.7589]
[1641737827266,1.792,139.5,139.43,1.792]
[1641737827267,1.792,139.5,139.43,12.5517]
[1641737827466,26.48813849,139.49,139.43,12.5517]
[1641737827666,1.792,139.48,139.41,10.38]
[1641737828771,14.58133849,139.48,139.42,10.7605]
[1641737828971,17.51527,139.47,139.41,10.38]
[1641737829173,1.792,139.46,139.41,10.38]
[1641737829374,30.35844133,139.45,139.38,39.82376803]
[1641737829577,1.793,139.44,139.38,39.82376803]
[1641737829774,1.793,139.44,139.4,10.7622]
[1641737829974,32.15144133,139.45,139.4,10.7622]
[1641737830675,32.15144133,139.45,139.38,39.82376803]
[1641737830876,1.793,139.46,139.38,39.82376803]
[1641737831076,1.793,139.46,139.39,1.793]
[1641737831277,1.793,139.46,139.39,2.043]
[1641737831477,1.793,139.46,139.39,1.793]
[1641737832077,1.793,139.46,139.4,0.25]
[1641737832306,1.793,139.47,139.39,1.793]
[1641737832777,1.793,139.47,139.42,10.7607]
[1641737833178,8.904142,139.46,139.42,10.7607]
[1641737833677,1.793,139.47,139.42,10.7607]
[1641737833877,100.4096,139.48,139.42,10.7607]
[1641737835282,75.5952,139.48,139.43,1.792]
[1641737835481,75.5952,139.48,139.45,10.758]
[1641737835681,24.9447,139.49,139.45,10.758]
[1641737836082,4.326626,139.48,139.45,10.758]
[1641737836481,3.03219997,139.47,139.45,10.758]
[1641737836881,3.03219997,139.47,139.42,1.792]
[1641737837481,3.03219997,139.47,139.41,1.792]
[1641737837681,1.792,139.46,139.4,10.38]
[1641737838383,29.02280418,139.46,139.4,10.38]
[1641737838782,27.23080418,139.46,139.41,10.7614]
[1641737838982,12.5542,139.47,139.41,10.7614]
[1641737839185,13.606017,139.46,139.41,10.7614]
[1641737839985,13.606017,139.46,139.4,22.9342]
[1641737839986,51.10266673,139.46,139.4,22.9342]
[1641737840189,1.793,139.45,139.4,21.1422]
[1641737842187,2.02883849,139.46,139.4,21.1422]
[1641737842391,76.00153849,139.48,139.4,26.9062]
[1641737842591,74.20853849,139.48,139.41,3.0]
[1641737842790,74.20853849,139.48,139.44,10.7592]
[1641737842990,3.82083849,139.48,139.44,10.7592]
[1641737843392,3.82083849,139.48,139.45,24.91558788]
[1641737843595,2.02883849,139.48,139.45,24.91558788]
[1641737844692,26.97353849,139.49,139.45,24.91558788]
[1641737845293,3.82083849,139.49,139.45,42.16298788]
[1641737845493,2.02883849,139.49,139.45,42.16298788]
[1641737845699,2.02883849,139.49,139.46,1.792]
[1641737846297,2.02883849,139.51,139.47,10.756]
[1641737849237,2.02883849,139.51,139.48,10.38]
[1641737849438,4.04570975,139.54,139.5,66.0]
[1641737849636,6.06786732,139.57,139.51,10.38]
[1641737849838,6.06786732,139.6,139.51,13.89]
[1641737850142,6.06786732,139.6,139.52,22.52876322]
[1641737850339,6.06786732,139.6,139.53,46.2111]
[1641737850541,6.06786732,139.6,139.57,10.7489]
[1641737850841,4.05865691,139.6,139.57,10.7489]
[1641737851643,1.791,139.63,139.57,10.7489]
[1641737852843,1.791,139.63,139.58,24.36158927]
[1641737853743,1.791,139.63,139.57,10.7489]
[1641737853942,12.5405,139.63,139.56,10.7498]
[1641737854144,12.5405,139.63,139.54,1.791]
[1641737854344,14.32132586,139.63,139.54,1.791]
[1641737854544,0.07,139.62,139.54,1.791]
[1641737854743,10.698191,139.61,139.53,10.38]
[1641737854944,10.7524,139.6,139.53,10.38]
[1641737855145,1.791,139.59,139.53,10.38]
[1641737855345,1.791,139.59,139.53,21.1321]
[1641737855545,1.791,139.61,139.53,21.1321]
[1641737855745,1.861,139.61,139.53,21.1321]
[1641737856147,3.64182586,139.61,139.53,21.1321]
[1641737856947,10.7526,139.59,139.53,21.1321]
[1641737857147,1.791,139.58,139.53,10.38]
[1641737858780,1.791,139.58,139.53,21.1321]
[1641737858977,1.791,139.58,139.53,10.38]
[1641737859379,12.5442,139.58,139.53,10.38]
[1641737860684,7.202235,139.57,139.53,10.38]
[1641737861085,1.791,139.58,139.53,10.38]
[1641737862785,1.791,139.58,139.53,21.1322]
[1641737863691,1.791,139.58,139.53,10.38]
[1641737865591,12.5437,139.59,139.53,10.38]
[1641737865794,12.5437,139.59,139.53,21.1323]
[1641737865991,12.5437,139.59,139.53,10.38]
[1641737866191,46.078647,139.58,139.53,10.38]
[1641737866394,46.078647,139.58,139.49,10.38]
[1641737866395,12.5455,139.57,139.49,10.38]
[1641737866694,11.447797,139.56,139.49,10.38]
[1641737866891,1.791,139.55,139.49,10.38]
[1641737867091,1.791,139.55,139.49,36.86792847]
[1641737867293,1.791,139.58,139.5,10.7545]
[1641737867492,10.7543,139.57,139.49,36.86792847]
[1641737867693,22.147264,139.56,139.49,36.86792847]
[1641737868092,1.791,139.58,139.49,36.86792847]
[1641737868295,39.629099,139.58,139.49,36.86792847]
[1641737868493,34.801471,139.57,139.49,36.86792847]
[1641737868792,1.791,139.58,139.49,36.86792847]
[1641737868793,1.791,139.56,139.51,10.7537]
[1641737868994,1.791,139.57,139.51,10.7537]
[1641737869192,19.858147,139.56,139.49,38.65892847]
[1641737869394,1.791,139.59,139.49,38.65892847]
[1641737869828,1.791,139.59,139.5,10.7544]
[1641737869829,10.7545,139.57,139.5,10.7544]
[1641737869994,1.791,139.56,139.5,10.7544]
[1641737870394,40.217328,139.55,139.5,10.7544]
[1641737870798,11.449437,139.54,139.5,10.7544]
[1641737870995,31.307584,139.55,139.5,10.7544]
[1641737871996,31.307584,139.55,139.49,47.62302847]
[1641737872196,1.791,139.54,139.49,47.62302847]
[1641737872796,1.791,139.55,139.49,47.62302847]
[1641737872997,11.44784,139.54,139.49,47.62302847]
[1641737873197,1.791,139.55,139.49,47.62302847]
[1641737874096,1.791,139.56,139.49,47.62302847]
[1641737875197,10.7533,139.58,139.49,47.62302847]
[1641737875198,1.791,139.57,139.49,47.62302847]
[1641737877098,1.791,139.57,139.49,49.41402847]
[1641737877327,1.791,139.58,139.49,49.41402847]
[1641737877501,1.791,139.58,139.53,10.752]
[1641737877698,20.349831,139.57,139.53,10.752]
[1641737877899,1.791,139.56,139.53,10.752]
[1641737878099,6.06439993,139.55,139.53,10.752]
[1641737878498,6.06439993,139.55,139.52,10.7529]
[1641737880502,6.06439993,139.55,139.51,10.7537]
[1641737883106,11.44538,139.54,139.5,10.38]
[1641737883304,13.23638,139.54,139.49,1.791]
[1641737883506,1.791,139.54,139.49,1.791]
[1641737883709,1.791,139.56,139.49,1.791]
[1641737883908,37.998063,139.56,139.46,10.38]
[1641737884106,34.36943286,139.54,139.46,36.89086073]
[1641737884407,1.792,139.53,139.46,36.89086073]
[1641737884605,25.40473286,139.54,139.46,36.89086073]
[1641737885205,25.40473286,139.54,139.48,10.756]
[1641737885407,18.939078,139.53,139.48,10.756]
[1641737885812,1.792,139.54,139.48,10.756]
[1641737891111,26.0155,139.55,139.48,10.756]
[1641737892913,36.7711,139.55,139.48,10.756]
[1641737893513,26.0155,139.55,139.48,10.756]
[1641737901022,24.2245,139.55,139.49,1.791]
[1641737901322,81.0263,139.56,139.49,1.791]
[1641737901524,79.2353,139.56,139.48,1.791]
[1641737901722,79.2353,139.56,139.48,2.041]
[1641737902622,79.2353,139.56,139.49,10.38]
[1641737902822,79.2353,139.56,139.51,10.7538]
[1641737904723,1.791,139.57,139.51,10.7538]
[1641737905523,1.791,139.58,139.52,38.38221581]
[1641737905724,1.791,139.56,139.52,38.38221581]
[1641737905925,1.791,139.58,139.52,38.38221581]
[1641737906130,1.791,139.58,139.52,48.76221581]
[1641737906629,4.06627327,139.57,139.53,2.041]
[1641737906829,4.06627327,139.57,139.55,10.7505]
[1641737907029,4.06627327,139.57,139.55,21.1305]
[1641737907354,6.06786732,139.6,139.55,21.1305]
[1641737907556,49.2619,139.62,139.55,21.1305]
[1641737908459,1.96123253,139.67,139.64,88.11408917]
[1641737908655,10.10601532,139.7,139.67,14.26344105]
[1641737908856,10.10601532,139.7,139.68,58.09516915]
[1641737909057,16.15717953,139.74,139.69,78.0]
[1641737909255,10.14529566,139.79,139.7,1.789]
[1641737909456,10.14529566,139.79,139.71,10.38]
[1641737909654,10.14529566,139.79,139.72,1.788]
[1641737909855,9.64529566,139.79,139.75,10.7335]
[1641737910057,9.64529566,139.79,139.76,15.168]
[1641737910256,16.15717953,139.83,139.76,15.418]
[1641737910456,16.15717953,139.83,139.76,37.59780181]
[1641737910658,46.35757298,139.88,139.77,25.34853481]
[1641737910957,45.85757298,139.88,139.8,37.78730132]
[1641737911259,17.50925646,139.88,139.81,10.38]
[1641737911462,17.50925646,139.88,139.81,21.144]
[1641737911463,1.788,139.88,139.81,21.144]
[1641737912061,1.788,139.88,139.81,18.144]
[1641737912462,1.786,139.9,139.82,3.25]
[1641737912758,29.28061681,139.93,139.84,24.80144531]
[1641737912959,29.28061681,139.93,139.85,10.38]
[1641737913360,1.786,139.93,139.85,21.1066]
[1641737913561,1.786,139.93,139.85,10.38]
[1641737913760,0.07,139.92,139.85,10.38]
[1641737913960,1.786,139.93,139.85,10.38]
[1641737914565,1.856,139.93,139.85,10.38]
[1641737914762,29.88550709,139.92,139.85,10.38]
[1641737914961,0.07,139.9,139.81,10.38]
[1641737915162,1.786,139.89,139.81,39.98167296]
[1641737915364,25.28361999,139.88,139.81,39.98167296]
[1641737915763,1.786,139.93,139.81,39.98167296]
[1641737915964,1.786,139.93,139.82,2.036]
[1641737916164,1.786,139.93,139.83,10.38]
[1641737916765,22.440652,139.92,139.83,10.38]
[1641737916965,0.07,139.9,139.83,10.38]
[1641737917167,24.226652,139.89,139.83,10.38]
[1641737917370,22.440652,139.88,139.83,10.38]
[1641737917565,1.786,139.87,139.83,10.38]
[1641737917766,23.436188,139.87,139.83,10.38]
[1641737917965,1.786,139.87,139.83,10.38]
[1641737919068,31.62036363,139.88,139.83,10.38]
[1641737919266,48.002254,139.87,139.83,10.38]
[1641737919467,25.857295,139.86,139.83,10.38]
[1641737919671,7.85039993,139.85,139.83,10.38]
[1641737919867,8.911557,139.84,139.83,10.38]
[1641737920671,20.363325,139.84,139.83,10.38]
[1641737920870,11.451768,139.84,139.83,10.38]
[1641737921069,31.73879535,139.85,139.83,10.38]
[1641737921271,8.911557,139.84,139.83,10.38]
[1641737921671,6.06439993,139.85,139.83,10.38]
[1641737922278,6.06439993,139.85,139.8,24.8860368]
[1641737922672,6.06439993,139.85,139.81,10.38]
[1641737923072,6.06439993,139.85,139.82,1.786]
[1641737923374,1.786,139.93,139.83,21.1087]
[1641737923574,1.786,139.93,139.84,1.786]
[1641737923772,1.786,139.93,139.85,10.38]
[1641737923973,20.354594,139.92,139.85,10.38]
[1641737924177,1.786,139.91,139.85,10.38]
[1641737924374,20.354594,139.9,139.85,10.38]
[1641737924573,20.354594,139.91,139.85,10.38]
[1641737924774,31.23369637,139.92,139.85,10.38]
[1641737924973,1.786,139.93,139.85,10.38]
[1641737925173,1.786,139.93,139.85,12.166]
[1641737925974,28.9347691,139.92,139.85,12.166]
[1641737926180,22.139958,139.91,139.85,10.38]
[1641737926376,11.446858,139.9,139.85,10.38]
[1641737926575,1.786,139.89,139.85,10.38]
[1641737926976,1.786,139.91,139.85,10.38]
[1641737927180,22.145769,139.91,139.85,10.38]
[1641737927385,27.232427,139.9,139.85,10.38]
[1641737927578,1.786,139.89,139.85,10.38]
[1641737927779,13.237762,139.89,139.85,10.38]
[1641737927981,11.451762,139.88,139.85,10.38]
[1641737928179,6.06439993,139.87,139.85,10.38]
[1641737931384,1.786,139.88,139.85,10.38]
[1641737931584,1.786,139.93,139.85,10.38]
[1641737931783,20.355468,139.92,139.85,10.38]
[1641737931988,1.786,139.91,139.85,10.38]
[1641737932293,4.246362,139.9,139.85,10.38]
[1641737932499,32.7123673,139.91,139.85,40.02475512]
[1641737932996,1.786,139.91,139.85,40.02475512]
[1641737933396,1.786,139.93,139.85,40.02475512]
[1641737933927,1.786,139.93,139.85,50.75175512]
[1641737934127,27.23877482,139.92,139.85,21.107]
[1641737934326,1.786,139.91,139.85,10.38]
[1641737935327,1.786,139.91,139.86,26.3094614]
[1641737935526,27.23877482,139.92,139.86,26.3094614]
[1641737936328,11.450175,139.91,139.86,26.3094614]
[1641737936528,23.355507,139.91,139.85,10.38]
[1641737936728,19.196029,139.9,139.85,10.38]
[1641737936930,1.786,139.89,139.85,10.38]
[1641737937331,20.364859,139.88,139.85,10.38]
[1641737937529,25.63564842,139.88,139.85,10.38]
[1641737937731,7.85039993,139.87,139.85,10.38]
[1641737937930,6.06439993,139.87,139.85,10.38]
[1641737939129,7.85039993,139.87,139.85,10.38]
[1641737939630,6.06439993,139.87,139.85,10.38]
[1641737942035,6.06439993,139.87,139.86,27.45004656]
[1641737942334,4.04534254,139.9,139.86,27.45004656]
[1641737943337,4.04534254,139.89,139.86,37.83004656]
[1641737943537,4.04534254,139.89,139.86,10.38]
[1641737943939,4.04534254,139.88,139.86,10.38]
[1641737944137,27.786,139.87,139.86,10.38]
[1641737944738,5.83134254,139.87,139.82,39.52084894]
[1641737944940,4.04534254,139.87,139.83,10.38]
[1641737945739,4.04534254,139.87,139.83,21.1088]
[1641737945939,4.04534254,139.88,139.83,21.1088]
[1641737947141,4.04534254,139.88,139.83,22.8948]
[1641737947843,1.786,139.9,139.83,22.8948]
[1641737947844,4.04534254,139.89,139.83,22.8948]
[1641737948442,4.04534254,139.88,139.83,22.8948]
[1641737950351,4.04534254,139.89,139.83,22.8948]
[1641737955671,4.04534254,139.88,139.83,22.8948]
[1641737957073,4.04534254,139.88,139.83,21.1088]
[1641737958275,4.04534254,139.88,139.83,22.8948]
[1641737959176,1.786,139.87,139.83,12.166]
[1641737959376,1.786,139.87,139.75,129.77]
[1641737959575,78.0,139.86,139.76,3.0]
[1641737959775,1.858,139.85,139.76,10.38]
[1641737959974,10.065,139.85,139.73,10.38]
[1641737960176,29.83473527,139.84,139.74,31.56924334]
[1641737960375,1.788,139.83,139.74,42.30514334]
[1641737960579,29.83473527,139.84,139.74,42.30514334]
[1641737960777,104.76394254,139.86,139.74,42.30514334]
[1641737960778,4.04534254,139.83,139.74,42.30514334]
[1641737961077,4.04534254,139.83,139.75,10.38]
[1641737962079,4.04534254,139.83,139.77,28.90906248]
[1641737962278,4.04534254,139.83,139.77,39.28906248]
[1641737962480,4.04534254,139.85,139.78,0.25]
[1641737962683,4.04534254,139.85,139.79,10.38]
[1641737963181,4.04534254,139.87,139.79,10.38]
[1641737963379,4.04534254,139.87,139.8,26.89604337]
[1641737963880,4.04534254,139.87,139.81,21.1106]
[1641737964680,4.04534254,139.88,139.81,21.1106]
[1641737965481,22.90956691,139.87,139.81,10.38]
[1641737966382,4.04534254,139.86,139.81,10.38]
[1641737967282,4.04534254,139.87,139.81,10.38]
[1641737969387,29.34391729,139.87,139.81,10.38]
[1641737969588,1.786,139.86,139.81,10.38]
[1641737969789,2.02484155,139.84,139.81,10.38]
[1641737969989,6.06439993,139.83,139.81,10.38]
[1641737970192,6.06439993,139.83,139.78,21.1128]
[1641737970393,8.08924148,139.83,139.78,21.1128]
[1641737971221,2.02484155,139.82,139.78,21.1128]
[1641737971424,2.02484155,139.82,139.77,10.7336]
[1641737971623,2.02484155,139.82,139.77,24.1136]
[1641737971827,2.02484155,139.82,139.77,13.7336]
[1641737975428,2.02484155,139.83,139.77,13.7336]
[1641737976131,2.02484155,139.83,139.77,24.1136]
[1641737976730,2.02484155,139.83,139.78,1.788]
[1641737976929,2.02484155,139.83,139.8,10.731]
[1641737977130,6.06439993,139.82,139.8,1.788]
[1641737977330,6.06439993,139.82,139.78,1.788]
[1641737978231,6.06439993,139.82,139.78,12.5204]
[1641737983944,6.06439993,139.82,139.79,10.7317]
[1641737985946,6.06439993,139.82,139.78,10.733]
[1641737986144,6.06439993,139.82,139.77,3.0]
[1641737986348,6.06439993,139.82,139.77,13.38]
[1641737986544,8.08924148,139.82,139.77,10.38]
[1641737986745,26.26142915,139.81,139.74,1.788]
[1641737986945,36.65142915,139.81,139.73,10.38]
[1641737987144,36.65142915,139.81,139.71,41.62462679]
[1641737987345,38.6762707,139.81,139.71,41.62462679]
[1641737987948,38.6762707,139.81,139.72,0.25]
[1641737988548,2.02484155,139.79,139.72,0.25]
[1641737989149,2.02484155,139.79,139.74,30.22418408]
[1641737990377,2.02484155,139.8,139.74,40.95988408]
[1641737990778,2.02484155,139.8,139.74,42.74070994]
[1641737991177,2.02484155,139.8,139.74,40.95988408]
[1641737991778,2.02484155,139.8,139.74,42.74788408]
[1641737992778,2.02484155,139.8,139.75,21.1146]
[1641737994880,2.02484155,139.8,139.75,10.38]
[1641737995881,22.4692179,139.79,139.75,10.38]